[Event "11th Dolomiti Open 2020"]
[Site "Forni di Sopra"]
[Date "2020.09.26"]
[Round "1.1"]
[White "Basso, Pier Luigi"]
[Black "Pasini, Nicolo"]
[Result "1-0"]
[ECO "D02"]
[WhiteElo "2603"]
[BlackElo "2276"]
[Annotator "ChessBase"]
[PlyCount "99"]
[EventDate "2020.09.26"]
[EventType "swiss"]
[EventCountry "ITA"]
[SourceTitle "playchess.com"]
[Source "ChessBase"]
[SourceQuality "1"]
[TimeControl "40/5400+30:1800+30"]

1. d4 {[%emt 0:00:00]} d5 {[%emt 0:35:32]} 2. Nf3 {[%emt 0:00:03]} Nf6 {[%emt 0:00:19]} 3. Bf4 {[%emt 0:00:28]} c5 {[%emt 0:00:09]} 4. e3 {[%emt 0:00:16]} Nc6 {[%emt 0:00:05]} 5. Nbd2 {[%emt 0:00:11]} cxd4 {[%emt 0:00:10]} 6. exd4 {[%emt 0:00:08]} Bf5 {[%emt 0:01:12]} 7. c3 {[%emt 0:01:24]} e6 {[%emt 0:00:52]} 8. Bb5 {[%emt 0:13:06]} Bd6 {[%emt 0:03:09]} 9. Ne5 {[%emt 0:02:56]} Qc7 {[%emt 0:04:02]} 10. c4 {[%emt 0:15:44]} Nd7 {[%emt 0:08:38]} 11. cxd5 {[%emt 0:07:36]} exd5 {[%emt 0:06:08]} 12. O-O {[%emt 0:07:28]} O-O {[%emt 0:15:30]} 13. Nxd7 {[%emt 0:02:28]} Bxf4 {[%emt 0:05:05]} 14. Nxf8 {[%emt 0:00:34]} Nxd4 {[%emt 0:00:47]} 15. Ba4 {[%emt 0:37:16]} Bxh2+ {[%emt 0:09:19]} 16. Kh1 {[%emt 0:00:01]} Qf4 {[%emt 0:00:31]} 17. Nf3 {[%emt 0:00:53]} Nxf3 {[%emt 0:03:28]} 18. Qxf3 {[%emt 0:00:05]} Rxf8 {[%emt 0:01:31]} 19. Qxf4 {[%emt 0:05:29]} Bxf4 {[%emt 0:00:06]} 20. Rad1 {[%emt 0:00:09]} Rd8 {[%emt 0:00:19]} 21. Rfe1 {[%emt 0:00:05]} Be6 {[%emt 0:01:09]} 22. Bb3 {[%emt 0:00:08]} g6 {[%emt 0:01:09]} 23. Rd3 {[%emt 0:00:08]} Bg5 {[%emt 0:01:09]} 24. Red1 {[%emt 0:00:42]} Bf6 {[%emt 0:00:19]} 25. Bxd5 {[%emt 0:00:18]} Bxd5 {[%emt 0:00:43]} 26. Rxd5 {[%emt 0:00:01]} Rxd5 {[%emt 0:00:37]} 27. Rxd5 {[%emt 0:00:01]} Bxb2 {[%emt 0:00:12]} 28. Rd7 {[%emt 0:00:02]} a5 {[%emt 0:01:01]} 29. Rxb7 {[%emt 0:00:03]} Bc3 {[%emt 0:00:33]} 30. Kg1 {[%emt 0:00:29]} Kg7 {[%emt 0:00:12]} 31. Kf1 {[%emt 0:00:08]} h5 {[%emt 0:00:08]} 32. Ke2 {[%emt 0:00:04]} Kf6 {[%emt 0:00:11]} 33. Rb3 {[%emt 0:00:51]} Bb4 {[%emt 0:00:52]} 34. Kd3 {[%emt 0:00:48]} Ke5 {[%emt 0:01:10]} 35. Kc4 {[%emt 0:00:50]} g5 {[%emt 0:00:38]} 36. a3 {[%emt 0:00:04]} Bd2 {[%emt 0:00:06]} 37. Rd3 {[%emt 0:00:11]} Bc1 {[%emt 0:00:38]} 38. Rd5+ {[%emt 0:00:05]} Ke6 {[%emt 0:00:25]} 39. Rxa5 {[%emt 0:00:06]} h4 {[%emt 0:00:26]} 40. a4 {[%emt 0:00:04]} f5 {[%emt 0:00:12]} 41. Rd5 {[%emt 0:30:37]} Bf4 {[%emt 0:30:41]} 42. a5 {[%emt 0:00:17]} Bb8 {[%emt 0:00:44]} 43. a6 {[%emt 0:00:16]} g4 {[%emt 0:00:27]} 44. Rd2 {[%emt 0:04:21]} Ke5 {[%emt 0:00:00]} 45. Rd7 {[%emt 0:00:00]} h3 {[%emt 0:00:00]} 46. gxh3 {[%emt 0:00:00]} gxh3 {[%emt 0:00:00]} 47. Rh7 {[%emt 0:00:00]} Kf4 {[%emt 0:00:00]} 48. Rxh3 {[%emt 0:00:00]} Ba7 {[%emt 0:00:00]} 49. Kd3 {[%emt 0:00:00]} Bxf2 {[%emt 0:00:00]} 50. Rh2 {[%emt 0:08:06]} 1-0

[Event "11th Dolomiti Open 2020"]
[Site "Forni di Sopra"]
[Date "2020.09.26"]
[Round "1.2"]
[White "Moroni, Luca Jr"]
[Black "Simonetto, Andrea"]
[Result "1-0"]
[ECO "D31"]
[WhiteElo "2530"]
[BlackElo "2195"]
[Annotator "ChessBase"]
[PlyCount "43"]
[EventDate "2020.09.26"]
[EventType "swiss"]
[EventCountry "ITA"]
[SourceTitle "playchess.com"]
[Source "ChessBase"]
[SourceQuality "1"]
[TimeControl "40/5400+30:1800+30"]

1. d4 {[%emt 0:00:00]} d5 {[%emt 0:00:00]} 2. c4 {[%emt 0:00:00]} e6 {[%emt 0:00:00]} 3. Nc3 {[%emt 0:00:00]} Bb4 {[%emt 0:00:10]} 4. cxd5 {[%emt 0:00:00]} exd5 {[%emt 0:00:07]} 5. Bf4 {[%emt 0:00:00]} Nf6 {[%emt 0:03:20]} 6. e3 {[%emt 0:00:01]} Ne4 {[%emt 0:05:21]} 7. Rc1 {[%emt 0:15:37]} c5 {[%emt 0:16:13]} 8. dxc5 {[%emt 0:02:15]} Bxc3+ {[%emt 0:04:06]} 9. bxc3 {[%emt 0:00:11]} Nc6 {[%emt 0:00:47]} 10. Nf3 {[%emt 0:03:39]} Bg4 {[%emt 0:06:23]} 11. Be2 {[%emt 0:02:02]} O-O {[%emt 0:06:27]} 12. O-O {[%emt 0:01:09]} Nxc5 {[%emt 0:00:39]} 13. c4 {[%emt 0:08:26]} Ne6 {[%emt 0:09:40]} 14. cxd5 {[%emt 0:05:01]} Nxf4 {[%emt 0:00:05]} 15. exf4 {[%emt 0:02:22]} Ne7 {[%emt 0:03:41]} 16. d6 {[%emt 0:06:40]} Nc8 {[%emt 0:04:45]} 17. Rc4 {[%emt 0:09:22]} Re8 {[%emt 0:11:38]} 18. Rd4 {[%emt 0:08:33]} Re6 {[%emt 0:02:26]} 19. d7 {[%emt 0:01:33]} Nb6 {[%emt 0:00:58]} 20. h3 {[%emt 0:04:06]} Bxf3 {[%emt 0:04:55]} 21. Bxf3 {[%emt 0:00:05]} Rb8 {[%emt 0:00:25]} 22. Re1 {[%emt 0:01:38]} 1-0

[Event "11th Dolomiti Open 2020"]
[Site "Forni di Sopra"]
[Date "2020.09.26"]
[Round "1.3"]
[White "Gueci, Tea"]
[Black "Heberla, Bartlomiej"]
[Result "0-1"]
[ECO "C84"]
[WhiteElo "2228"]
[BlackElo "2566"]
[Annotator "ChessBase"]
[PlyCount "51"]
[EventDate "2020.09.26"]
[EventType "swiss"]
[EventCountry "ITA"]
[SourceTitle "playchess.com"]
[Source "ChessBase"]
[SourceQuality "1"]
[TimeControl "40/5400+30:1800+30"]

1. e4 {[%emt 0:00:00]} e5 {[%emt 0:00:00]} 2. Nf3 {[%emt 0:00:00]} Nc6 {[%emt 0:00:00]} 3. Bb5 {[%emt 0:00:00]} a6 {[%emt 0:00:00]} 4. Ba4 {[%emt 0:00:06]} Nf6 {[%emt 0:00:00]} 5. d3 {[%emt 0:00:05]} d6 {[%emt 0:00:05]} 6. c4 {[%emt 0:03:24]} Be7 {[%emt 0:00:35]} 7. O-O {[%emt 0:00:35]} O-O {[%emt 0:00:14]} 8. h3 {[%emt 0:00:54]} Nb8 {[%emt 0:11:39]} 9. Nc3 {[%emt 0:02:35]} c6 {[%emt 0:00:40]} 10. Bc2 {[%emt 0:11:08]} Nbd7 {[%emt 0:01:22]} 11. a4 {[%emt 0:05:05]} a5 {[%emt 0:07:00]} 12. Be3 {[%emt 0:02:36]} Re8 {[%emt 0:07:50]} 13. Re1 {[%emt 0:06:57]} Bf8 {[%emt 0:00:28]} 14. b3 {[%emt 0:03:30]} Nc5 {[%emt 0:10:09]} 15. d4 {[%emt 0:02:03]} exd4 {[%emt 0:00:07]} 16. Bxd4 {[%emt 0:00:32]} Nfd7 {[%emt 0:00:54]} 17. Qd2 {[%emt 0:07:19]} Ne6 {[%emt 0:12:56]} 18. Be3 {[%emt 0:02:16]} Ndc5 {[%emt 0:02:45]} 19. Rad1 {[%emt 0:04:42]} Qc7 {[%emt 0:02:57]} 20. Nh2 {[%emt 0:07:34]} Na6 {[%emt 0:04:21]} 21. f4 {[%emt 0:08:27]} Nec5 {[%emt 0:00:05]} 22. Nf3 {[%emt 0:02:14]} Bd7 {[%emt 0:01:16]} 23. Nd4 {[%emt 0:04:37]} Rad8 {[%emt 0:04:27]} 24. Qf2 {[%emt 0:05:25]} Bc8 {[%emt 0:01:11]} 25. Qf3 {[%emt 0:03:38]} Nb4 {[%emt 0:00:18]} 26. Bb1 {[%emt 0:00:17]} 0-1

[Event "11th Dolomiti Open 2020"]
[Site "Forni di Sopra"]
[Date "2020.09.26"]
[Round "1.4"]
[White "Bonade, Massimo"]
[Black "Gumularz, Szymon"]
[Result "0-1"]
[ECO "B66"]
[WhiteElo "2160"]
[BlackElo "2518"]
[Annotator "ChessBase"]
[PlyCount "66"]
[EventDate "2020.09.26"]
[EventType "swiss"]
[EventCountry "ITA"]
[SourceTitle "playchess.com"]
[Source "ChessBase"]
[SourceQuality "1"]
[TimeControl "40/5400+30:1800+30"]

1. e4 {[%emt 0:00:00]} c5 {[%emt 0:00:00]} 2. Nf3 {[%emt 0:00:00]} d6 {[%emt 0:00:00]} 3. d4 {[%emt 0:00:00]} cxd4 {[%emt 0:00:00]} 4. Nxd4 {[%emt 1:32:00]} Nf6 {[%emt 0:00:00]} 5. Nc3 {[%emt 0:00:00]} Nc6 {[%emt 0:00:09]} 6. Bg5 {[%emt 0:00:16]} e6 {[%emt 0:00:12]} 7. Qd2 {[%emt 0:00:07]} a6 {[%emt 0:00:04]} 8. O-O-O {[%emt 0:01:21]} Be7 {[%emt 0:00:06]} 9. f3 {[%emt 0:02:05]} Nxd4 {[%emt 0:02:47]} 10. Qxd4 {[%emt 0:00:07]} b5 {[%emt 0:00:27]} 11. Kb1 {[%emt 0:07:33]} Qc7 {[%emt 0:10:08]} 12. Qd2 {[%emt 0:05:19]} Bb7 {[%emt 0:06:08]} 13. h4 {[%emt 0:06:07]} Rc8 {[%emt 0:06:07]} 14. Bd3 {[%emt 0:26:28]} h6 {[%emt 0:14:34]} 15. Be3 {[%emt 0:01:04]} Nd7 {[%emt 0:56:48]} 16. Ne2 {[%emt 0:06:49]} Ne5 {[%emt 0:01:56]} 17. Nd4 {[%emt 0:03:58]} d5 {[%emt 0:05:37]} 18. Bf4 {[%emt 0:10:05]} dxe4 {[%emt 0:01:44]} 19. fxe4 {[%emt 0:02:57]} Nc4 {[%emt 0:22:56]} 20. Qc1 {[%emt 0:04:23]} Qb6 {[%emt 0:00:48]} 21. Nf3 {[%emt 0:01:53]} Bf6 {[%emt 0:01:09]} 22. e5 {[%emt 0:03:58]} Be7 {[%emt 0:00:14]} 23. Rde1 {[%emt 0:04:24]} a5 {[%emt 0:04:17]} 24. Nd2 {[%emt 0:04:48]} a4 {[%emt 0:06:10]} 25. Ne4 {[%emt 0:01:29]} b4 {[%emt 0:02:59]} 26. Bxc4 {[%emt 0:00:09]} Rxc4 {[%emt 0:00:04]} 27. Nd6+ {[%emt 0:00:58]} Bxd6 {[%emt 0:00:04]} 28. exd6 {[%emt 0:00:05]} Be4 {[%emt 0:01:16]} 29. Ka1 {[%emt 0:05:58]} Kd7 {[%emt 0:01:58]} 30. Qd1 {[%emt 0:01:02]} Bxc2 {[%emt 0:02:34]} 31. Qg4 {[%emt 0:00:44]} Qd4 {[%emt 0:01:03]} 32. Qf3 {[%emt 0:00:51]} Be4 {[%emt 0:00:52]} 33. Qe2 {[%emt 0:00:42]} Rc2 {[%emt 0:00:35]} 0-1

[Event "11th Dolomiti Open 2020"]
[Site "Forni di Sopra"]
[Date "2020.09.26"]
[Round "1.5"]
[White "Valsecchi, Alessio"]
[Black "Bucher, Grant W"]
[Result "1-0"]
[ECO "A84"]
[WhiteElo "2491"]
[BlackElo "2119"]
[Annotator "ChessBase"]
[PlyCount "79"]
[EventDate "2020.09.26"]
[EventType "swiss"]
[EventCountry "ITA"]
[SourceTitle "playchess.com"]
[Source "ChessBase"]
[SourceQuality "1"]
[TimeControl "40/5400+30:1800+30"]

1. d4 {[%emt 0:00:00]} d5 {[%emt 0:00:00]} 2. c4 {[%emt 0:00:12]} e6 {[%emt 0:00:00]} 3. Nc3 {[%emt 0:00:25]} c6 {[%emt 0:00:00]} 4. e3 {[%emt 0:02:47]} f5 {[%emt 1:32:00]} 5. Bd3 {[%emt 0:01:38]} Nf6 {[%emt 0:01:18]} 6. Qc2 {[%emt 0:01:52]} Bd6 {[%emt 0:03:35]} 7. Nge2 {[%emt 0:04:25]} Ne4 {[%emt 0:05:47]} 8. O-O {[%emt 0:04:43]} Qh4 {[%emt 0:11:28]} 9. g3 {[%emt 0:01:55]} Qd8 {[%emt 0:09:10]} 10. f3 {[%emt 0:09:38]} Nxc3 {[%emt 0:03:10]} 11. bxc3 {[%emt 0:00:13]} O-O {[%emt 0:12:13]} 12. Bd2 {[%emt 0:00:20]} c5 {[%emt 0:05:11]} 13. e4 {[%emt 0:05:03]} dxc4 {[%emt 0:06:52]} 14. Bxc4 {[%emt 0:00:07]} cxd4 {[%emt 0:10:47]} 15. cxd4 {[%emt 0:00:38]} Kh8 {[%emt 0:02:55]} 16. e5 {[%emt 0:17:21]} Bc7 {[%emt 0:04:11]} 17. Rad1 {[%emt 0:47:13]} Nc6 {[%emt 0:00:58]} 18. Kh1 {[%emt 0:01:03]} Na5 {[%emt 0:07:19]} 19. Bxa5 {[%emt 0:03:09]} Bxa5 {[%emt 0:00:04]} 20. d5 {[%emt 0:00:29]} exd5 {[%emt 0:01:19]} 21. Rxd5 {[%emt 0:00:27]} Qc7 {[%emt 0:00:36]} 22. Nf4 {[%emt 0:00:59]} b5 {[%emt 0:02:00]} 23. Rxb5 {[%emt 0:04:10]} Ba6 {[%emt 0:00:32]} 24. Ne6 {[%emt 0:00:49]} Qc6 {[%emt 0:03:55]} 25. Rxa5 {[%emt 0:13:04]} Qxc4 {[%emt 0:02:09]} 26. Qxc4 {[%emt 0:00:10]} Bxc4 {[%emt 0:00:04]} 27. Nxf8 {[%emt 0:00:07]} Bxf1 {[%emt 0:00:06]} 28. Nd7 {[%emt 0:23:48]} a6 {[%emt 0:01:43]} 29. a4 {[%emt 0:01:35]} Rd8 {[%emt 0:01:42]} 30. e6 {[%emt 0:04:22]} g6 {[%emt 0:04:17]} 31. Rc5 {[%emt 0:00:19]} Re8 {[%emt 0:01:03]} 32. Rc6 {[%emt 0:00:40]} Kg7 {[%emt 0:00:35]} 33. Kg1 {[%emt 0:00:27]} Bd3 {[%emt 0:00:40]} 34. f4 {[%emt 0:02:50]} a5 {[%emt 0:00:31]} 35. Kf2 {[%emt 0:02:40]} Be4 {[%emt 0:01:09]} 36. Ra6 {[%emt 0:02:16]} Bd5 {[%emt 0:00:14]} 37. Nc5 {[%emt 0:01:22]} Kf6 {[%emt 0:00:55]} 38. Ke3 {[%emt 0:01:08]} Bc4 {[%emt 0:00:27]} 39. Rxa5 {[%emt 0:00:17]} Bxe6 {[%emt 0:00:06]} 40. Ra6 {[%emt 0:00:06]} 1-0

[Event "11th Dolomiti Open 2020"]
[Site "Forni di Sopra"]
[Date "2020.09.26"]
[Round "1.6"]
[White "Tencati, Giuseppe"]
[Black "Blohberger, Felix"]
[Result "0-1"]
[ECO "E33"]
[WhiteElo "2095"]
[BlackElo "2467"]
[Annotator "ChessBase"]
[PlyCount "50"]
[EventDate "2020.09.26"]
[EventType "swiss"]
[EventCountry "ITA"]
[SourceTitle "playchess.com"]
[Source "ChessBase"]
[SourceQuality "1"]
[TimeControl "40/5400+30:1800+30"]

1. d4 {[%emt 0:00:00]} Nf6 {[%emt 0:00:00]} 2. c4 {[%emt 0:00:00]} e6 {[%emt 0:00:00]} 3. Nc3 {[%emt 0:00:00]} Bb4 {[%emt 0:00:00]} 4. Qc2 {[%emt 0:00:12]} Nc6 {[%emt 0:00:00]} 5. Nf3 {[%emt 0:04:27]} d6 {[%emt 0:02:51]} 6. e3 {[%emt 0:33:10]} O-O {[%emt 0:02:23]} 7. Bd3 {[%emt 0:01:07]} e5 {[%emt 0:00:23]} 8. d5 {[%emt 0:06:54]} Ne7 {[%emt 0:00:18]} 9. Bd2 {[%emt 0:04:45]} c6 {[%emt 0:03:53]} 10. e4 {[%emt 0:02:42]} Bg4 {[%emt 0:01:46]} 11. Be2 {[%emt 0:10:03]} cxd5 {[%emt 0:00:16]} 12. cxd5 {[%emt 0:00:54]} Ng6 {[%emt 0:00:11]} 13. g3 {[%emt 0:04:18]} Rc8 {[%emt 0:06:07]} 14. a3 {[%emt 0:06:43]} Bc5 {[%emt 0:05:34]} 15. b4 {[%emt 0:09:02]} Bd4 {[%emt 0:02:20]} 16. Qd3 {[%emt 0:03:03]} Qb6 {[%emt 0:14:59]} 17. Nxd4 {[%emt 0:06:35]} exd4 {[%emt 0:03:42]} 18. Na4 {[%emt 0:00:29]} Bxe2 {[%emt 0:00:56]} 19. Kxe2 {[%emt 0:01:50]} Qd8 {[%emt 0:00:10]} 20. Qxd4 {[%emt 0:01:28]} Nxe4 {[%emt 0:00:50]} 21. Kf1 {[%emt 0:01:59]} Rc4 {[%emt 0:00:27]} 22. Qb2 {[%emt 0:00:43]} Qd7 {[%emt 0:01:46]} 23. Nc3 {[%emt 0:00:26]} Qh3+ {[%emt 0:00:18]} 24. Kg1 {[%emt 0:00:14]} Nxd2 {[%emt 0:02:00]} 25. Qxd2 {[%emt 0:00:06]} Nh4 {[%emt 0:00:09]} 0-1

[Event "11th Dolomiti Open 2020"]
[Site "Forni di Sopra"]
[Date "2020.09.26"]
[Round "1.7"]
[White "Bellia, Fabrizio"]
[Black "Marchesich, Giovanni"]
[Result "1-0"]
[ECO "C70"]
[WhiteElo "2421"]
[BlackElo "2063"]
[Annotator "ChessBase"]
[PlyCount "63"]
[EventDate "2020.09.26"]
[EventType "swiss"]
[EventCountry "ITA"]
[SourceTitle "playchess.com"]
[Source "ChessBase"]
[SourceQuality "1"]
[TimeControl "40/5400+30:1800+30"]

1. e4 {[%emt 0:00:00]} e5 {[%emt 0:00:00]} 2. Nf3 {[%emt 0:00:00]} Nc6 {[%emt 0:00:00]} 3. Bb5 {[%emt 0:00:00]} a6 {[%emt 0:00:13]} 4. Ba4 {[%emt 0:00:00]} g6 {[%emt 0:00:24]} 5. d4 {[%emt 0:06:01]} b5 {[%emt 0:00:42]} 6. Bb3 {[%emt 0:02:36]} exd4 {[%emt 0:00:23]} 7. Nxd4 {[%emt 0:06:47]} Na5 {[%emt 0:00:36]} 8. O-O {[%emt 0:02:43]} Bb7 {[%emt 0:07:39]} 9. c3 {[%emt 0:19:17]} Bg7 {[%emt 0:04:29]} 10. Bc2 {[%emt 0:01:00]} Ne7 {[%emt 0:06:44]} 11. a4 {[%emt 0:03:05]} c5 {[%emt 0:04:44]} 12. Nf3 {[%emt 0:01:25]} d5 {[%emt 0:24:03]} 13. exd5 {[%emt 0:08:05]} Qxd5 {[%emt 0:03:26]} 14. Qe2 {[%emt 0:05:18]} Qc4 {[%emt 0:03:52]} 15. Bd3 {[%emt 0:13:07]} Qg4 {[%emt 0:00:11]} 16. axb5 {[%emt 0:00:17]} Nb3 {[%emt 0:11:27]} 17. Ra3 {[%emt 0:00:16]} Nxc1 {[%emt 0:02:27]} 18. Rxc1 {[%emt 0:00:08]} Bxf3 {[%emt 0:05:33]} 19. Qxf3 {[%emt 0:00:15]} Qxf3 {[%emt 0:00:06]} 20. gxf3 {[%emt 0:00:05]} O-O-O {[%emt 0:02:45]} 21. Bf1 {[%emt 0:06:32]} axb5 {[%emt 0:03:27]} 22. Ra5 {[%emt 0:02:20]} Rd5 {[%emt 0:02:59]} 23. Rxb5 {[%emt 0:01:16]} Nc6 {[%emt 0:03:00]} 24. Na3 {[%emt 0:01:34]} Ne5 {[%emt 0:00:51]} 25. Be2 {[%emt 0:01:51]} Nd7 {[%emt 0:02:46]} 26. Nc4 {[%emt 0:00:53]} Re8 {[%emt 0:00:59]} 27. Kf1 {[%emt 0:00:23]} Be5 {[%emt 0:02:17]} 28. Ra1 {[%emt 0:00:48]} Kd8 {[%emt 0:01:39]} 29. h3 {[%emt 0:05:40]} Bc7 {[%emt 0:00:33]} 30. Rb7 {[%emt 0:00:38]} Kc8 {[%emt 0:00:26]} 31. Raa7 {[%emt 0:01:01]} Bb8 {[%emt 0:01:41]} 32. Rxd7 {[%emt 0:12:39]} 1-0

[Event "11th Dolomiti Open 2020"]
[Site "Forni di Sopra"]
[Date "2020.09.26"]
[Round "1.8"]
[White "Lunn, Matthew"]
[Black "Barp, Alberto"]
[Result "0-1"]
[ECO "E14"]
[WhiteElo "2044"]
[BlackElo "2377"]
[Annotator "ChessBase"]
[PlyCount "60"]
[EventDate "2020.09.26"]
[EventType "swiss"]
[EventCountry "ITA"]
[SourceTitle "playchess.com"]
[Source "ChessBase"]
[SourceQuality "1"]
[TimeControl "40/5400+30:1800+30"]

1. d4 {[%emt 0:00:00]} d5 {[%emt 0:00:00]} 2. c4 {[%emt 0:00:00]} e6 {[%emt 0:00:00]} 3. Nf3 {[%emt 0:00:16]} Nf6 {[%emt 0:00:00]} 4. e3 {[%emt 0:00:10]} b6 {[%emt 0:00:02]} 5. b3 {[%emt 0:01:29]} Bd6 {[%emt 0:01:03]} 6. Bb2 {[%emt 0:01:07]} O-O {[%emt 0:00:24]} 7. Bd3 {[%emt 0:01:37]} Bb7 {[%emt 0:00:23]} 8. O-O {[%emt 0:04:16]} Nbd7 {[%emt 0:06:51]} 9. cxd5 {[%emt 0:14:30]} exd5 {[%emt 0:00:07]} 10. Nc3 {[%emt 0:02:55]} a6 {[%emt 0:00:21]} 11. Rc1 {[%emt 0:04:40]} Ne4 {[%emt 0:05:34]} 12. Qc2 {[%emt 0:10:01]} Qe7 {[%emt 0:05:04]} 13. a3 {[%emt 0:13:20]} f5 {[%emt 0:05:55]} 14. b4 {[%emt 0:13:55]} c6 {[%emt 0:08:25]} 15. Na4 {[%emt 0:06:53]} Rf6 {[%emt 0:23:42]} 16. g3 {[%emt 0:09:54]} Re8 {[%emt 0:16:49]} 17. Qe2 {[%emt 0:03:01]} Rff8 {[%emt 0:02:33]} 18. h4 {[%emt 0:04:46]} Qe6 {[%emt 0:05:08]} 19. Kg2 {[%emt 0:02:44]} f4 {[%emt 0:04:02]} 20. exf4 {[%emt 0:01:34]} Bxf4 {[%emt 0:00:06]} 21. Rce1 {[%emt 0:01:42]} Bc8 {[%emt 0:01:04]} 22. Bxa6 {[%emt 0:01:34]} Bxa6 {[%emt 0:00:48]} 23. Qxa6 {[%emt 0:00:05]} Ra8 {[%emt 0:00:49]} 24. Qd3 {[%emt 0:00:47]} Rxa4 {[%emt 0:00:06]} 25. gxf4 {[%emt 0:00:15]} Qg4+ {[%emt 0:00:17]} 26. Kh1 {[%emt 0:00:54]} Qh3+ {[%emt 0:00:22]} 27. Kg1 {[%emt 0:00:12]} Rxf4 {[%emt 0:00:11]} 28. Ne5 {[%emt 0:00:51]} Rg4+ {[%emt 0:00:27]} 29. Nxg4 {[%emt 0:00:12]} Qxd3 {[%emt 0:00:06]} 30. f3 {[%emt 0:00:13]} Nef6 {[%emt 0:00:21]} 0-1

[Event "11th Dolomiti Open 2020"]
[Site "Forni di Sopra"]
[Date "2020.09.26"]
[Round "1.9"]
[White "Di Lascio, Savino"]
[Black "Damele, Stefano"]
[Result "1-0"]
[ECO "A07"]
[WhiteElo "1921"]
[BlackElo "1707"]
[Annotator "ChessBase"]
[PlyCount "134"]
[EventDate "2020.09.26"]
[EventType "swiss"]
[EventCountry "ITA"]
[SourceTitle "playchess.com"]
[Source "ChessBase"]
[SourceQuality "1"]
[TimeControl "40/5400+30:1800+30"]

1. Nf3 {[%emt 0:00:00]} Nf6 {[%emt 0:00:00]} 2. g3 {[%emt 0:00:00]} d5 {[%emt 0:00:00]} 3. Bg2 {[%emt 0:00:00]} e6 {[%emt 0:00:10]} 4. O-O {[%emt 0:00:20]} Nbd7 {[%emt 0:01:10]} 5. d3 {[%emt 0:00:28]} c6 {[%emt 0:01:13]} 6. Nbd2 {[%emt 0:00:27]} Be7 {[%emt 0:01:03]} 7. c4 {[%emt 0:00:26]} O-O {[%emt 0:00:27]} 8. a3 {[%emt 0:00:19]} a5 {[%emt 0:01:23]} 9. b3 {[%emt 0:00:19]} b5 {[%emt 0:04:09]} 10. Nd4 {[%emt 0:02:53]} Qb6 {[%emt 0:01:06]} 11. Bb2 {[%emt 0:01:08]} Bb7 {[%emt 0:02:42]} 12. Ra2 {[%emt 0:00:26]} bxc4 {[%emt 0:02:32]} 13. bxc4 {[%emt 0:01:08]} Rfc8 {[%emt 0:04:26]} 14. Qa1 {[%emt 0:00:47]} c5 {[%emt 0:01:43]} 15. Nb5 {[%emt 0:01:24]} d4 {[%emt 0:00:22]} 16. Bxb7 {[%emt 0:00:31]} Qxb7 {[%emt 0:00:08]} 17. a4 {[%emt 0:01:33]} Qc6 {[%emt 0:02:55]} 18. Ba3 {[%emt 0:00:29]} Bf8 {[%emt 0:01:29]} 19. Rb1 {[%emt 0:00:21]} e5 {[%emt 0:01:16]} 20. Bc1 {[%emt 0:00:25]} Ra6 {[%emt 0:02:22]} 21. f3 {[%emt 0:02:52]} Nh5 {[%emt 0:02:18]} 22. Nf1 {[%emt 0:02:54]} Qg6 {[%emt 0:04:51]} 23. Kf2 {[%emt 0:02:15]} f5 {[%emt 0:02:38]} 24. Rb3 {[%emt 0:12:30]} e4 {[%emt 0:01:57]} 25. Qb1 {[%emt 0:01:42]} e3+ {[%emt 0:01:20]} 26. Ke1 {[%emt 0:00:29]} Ne5 {[%emt 0:02:26]} 27. Kd1 {[%emt 0:00:59]} Qc6 {[%emt 0:04:40]} 28. Kc2 {[%emt 0:05:51]} Qd7 {[%emt 0:06:35]} 29. Ba3 {[%emt 0:01:10]} Nc6 {[%emt 0:01:02]} 30. Qe1 {[%emt 0:05:52]} Nb4+ {[%emt 0:00:34]} 31. Bxb4 {[%emt 0:00:09]} axb4 {[%emt 0:00:11]} 32. Rb1 {[%emt 0:01:02]} Rca8 {[%emt 0:04:11]} 33. Kb3 {[%emt 0:00:31]} Nf6 {[%emt 0:01:03]} 34. h3 {[%emt 0:02:29]} Qd8 {[%emt 0:05:54]} 35. Nh2 {[%emt 0:02:41]} Nd7 {[%emt 0:00:51]} 36. f4 {[%emt 0:00:51]} Nb8 {[%emt 0:03:24]} 37. Nf3 {[%emt 0:01:13]} Nc6 {[%emt 0:00:38]} 38. Qd1 {[%emt 0:03:41]} Na5+ {[%emt 0:03:08]} 39. Kb2 {[%emt 0:00:18]} Nc6 {[%emt 0:00:31]} 40. Ng5 {[%emt 0:01:15]} Bd6 {[%emt 0:02:54]} 41. Qh1 {[%emt 0:30:54]} Ne7 {[%emt 0:30:56]} 42. Kb3 {[%emt 0:02:39]} h6 {[%emt 0:00:18]} 43. Nf3 {[%emt 0:01:40]} Nc6 {[%emt 0:00:03]} 44. Rba1 {[%emt 0:01:52]} Na5+ {[%emt 0:01:44]} 45. Kb2 {[%emt 0:00:12]} Nc6 {[%emt 0:00:51]} 46. Nh4 {[%emt 0:01:03]} Ne7 {[%emt 0:00:56]} 47. Nxf5 {[%emt 0:01:18]} Nxf5 {[%emt 0:02:57]} 48. Qd5+ {[%emt 0:00:10]} Kh8 {[%emt 0:00:18]} 49. Qxf5 {[%emt 0:00:12]} Be7 {[%emt 0:03:06]} 50. Kb3 {[%emt 0:00:34]} Rf6 {[%emt 0:03:55]} 51. Qe4 {[%emt 0:02:36]} Raa6 {[%emt 0:04:05]} 52. f5 {[%emt 0:00:57]} Rf7 {[%emt 0:02:21]} 53. g4 {[%emt 0:00:48]} Bf6 {[%emt 0:00:48]} 54. Rh1 {[%emt 0:03:27]} Re7 {[%emt 0:01:58]} 55. Qf3 {[%emt 0:02:04]} Kg8 {[%emt 0:02:49]} 56. h4 {[%emt 0:00:58]} Rd7 {[%emt 0:01:29]} 57. Qg3 {[%emt 0:01:12]} Qa8 {[%emt 0:01:33]} 58. Rg1 {[%emt 0:01:26]} Be7 {[%emt 0:04:54]} 59. g5 {[%emt 0:00:40]} hxg5 {[%emt 0:00:58]} 60. hxg5 {[%emt 0:00:08]} Bd6 {[%emt 0:00:08]} 61. Qh3 {[%emt 0:01:35]} Bf4 {[%emt 0:01:11]} 62. f6 {[%emt 0:01:30]} Rb7 {[%emt 0:01:28]} 63. Qf5 {[%emt 0:01:49]} Bh2 {[%emt 0:00:00]} 64. Rh1 {[%emt 0:00:00]} Rxb5 {[%emt 0:00:00]} 65. Rxh2 {[%emt 0:00:00]} Rba5 {[%emt 0:02:02]} 66. Qh7+ {[%emt 0:29:08]} Kf8 {[%emt 0:00:30]} 67. Qf5 {[%emt 0:00:30]} Kg8 {[%emt 0:00:00]} 1-0